[Event "Estonian Chess Championship 2022"]
[Site "Tallinn, Paul Keres Chess House, Estonia"]
[Date "2022.12.17"]
[Round "8.4"]
[White "Seeman, Tarvo"]
[Black "Kulaots, Kaido"]
[Result "1/2-1/2"]
[TimeControl "90 minutes for first 40 moves and 15 min. for the rest of the game with 30 sec. increment from move 1"]
[WhiteTitle "IM"]
[BlackTitle "GM"]
[WhiteFideId "4500547"]
[BlackFideId "4500261"]
[WhiteElo "2405"]
[BlackElo "2513"]

1. c4 {

[%clk 01:29:41]

} {

[%emt 00:01:17]

} g6 {

[%clk 01:27:11]

} {

[%emt 00:03:49]

} 2. g3 {

[%clk 01:29:45]

} {

[%emt 00:00:26]

} Bg7 {

[%clk 01:27:22]

} {

[%emt 00:00:19]

} 3. Bg2 {

[%clk 01:30:08]

} {

[%emt 00:00:06]

} d6 {

[%clk 01:27:11]

} {

[%emt 00:00:42]

} 4. Nc3 {

[%clk 01:28:31]

} {

[%emt 00:02:07]

} e5 {

[%clk 01:24:39]

} {

[%emt 00:03:01]

} 5. Nf3 {

[%clk 01:23:14]

} {

[%emt 00:05:47]

} Nf6 {

[%clk 01:21:54]

} {

[%emt 00:03:15]

} 6. d4 {

[%clk 01:12:27]

} {

[%emt 00:11:17]

} Nbd7 {

[%clk 01:22:10]

} {

[%emt 00:00:14]

} 7. O-O {

[%clk 01:10:46]

} {

[%emt 00:02:11]

} O-O {

[%clk 01:22:35]

} {

[%emt 00:00:05]

} 8. e4 {

[%clk 01:10:42]

} {

[%emt 00:00:34]

} c6 {

[%clk 01:22:40]

} {

[%emt 00:00:24]

} 9. b3 {

[%clk 01:06:44]

} {

[%emt 00:04:29]

} exd4 {

[%clk 01:15:53]

} {

[%emt 00:07:17]

} 10. Nxd4 {

[%clk 01:07:02]

} {

[%emt 00:00:11]

} Nc5 {

[%clk 01:16:09]

} {

[%emt 00:00:14]

} 11. h3 {

[%clk 01:02:21]

} {

[%emt 00:05:12]

} Re8 {

[%clk 01:11:31]

} {

[%emt 00:05:08]

} 12. Re1 {

[%clk 01:02:01]

} {

[%emt 00:00:50]

} h6 {

[%clk 00:57:41]

} {

[%emt 00:14:19]

} 13. Rb1 {

[%clk 00:50:30]

} {

[%emt 00:12:02]

} a5 {

[%clk 00:48:22]

} {

[%emt 00:09:49]

} 14. Bb2 {

[%clk 00:38:14]

} {

[%emt 00:12:46]

} Qb6 {

[%clk 00:45:46]

} {

[%emt 00:03:05]

} 15. Ba1 {

[%clk 00:32:49]

} {

[%emt 00:05:55]

} h5 {

[%clk 00:43:57]

} {

[%emt 00:02:19]

} 16. a3 {

[%clk 00:27:08]

} {

[%emt 00:06:12]

} Nfd7 {

[%clk 00:37:28]

} {

[%emt 00:06:58]

} 17. Nde2 {

[%clk 00:14:13]

} {

[%emt 00:13:25]

} Ne5 {

[%clk 00:31:47]

} {

[%emt 00:06:10]

} 18. Nf4 {

[%clk 00:14:27]

} {

[%emt 00:00:16]

} Qd8 {

[%clk 00:21:57]

} {

[%emt 00:10:20]

} 19. Qc2 {

[%clk 00:13:51]

} {

[%emt 00:01:07]

} h4 {

[%clk 00:21:39]

} {

[%emt 00:00:47]

} 20. g4 {

[%clk 00:09:43]

} {

[%emt 00:04:38]

} Qf6 {

[%clk 00:18:08]

} {

[%emt 00:04:01]

} 21. Nce2 {

[%clk 00:07:26]

} {

[%emt 00:02:48]

} a4 {

[%clk 00:17:42]

} {

[%emt 00:00:56]

} 22. b4 {

[%clk 00:07:02]

} {

[%emt 00:00:54]

} Nb3 {

[%clk 00:16:44]

} {

[%emt 00:01:27]

} 23. Bb2 {

[%clk 00:06:07]

} {

[%emt 00:01:25]

} Bh6 {

[%clk 00:16:02]

} {

[%emt 00:01:12]

} 24. Nd3 {

[%clk 00:05:40]

} {

[%emt 00:00:57]

} Nd2 {

[%clk 00:10:32]

} {

[%emt 00:06:00]

} 25. f4 {

[%clk 00:04:16]

} {

[%emt 00:01:54]

} Ndf3+ {

[%clk 00:10:47]

} {

[%emt 00:00:14]

} 26. Kf2 {

[%clk 00:03:11]

} {

[%emt 00:01:36]

} Nxe1 {

[%clk 00:07:57]

} {

[%emt 00:03:20]

} 27. Kxe1 {

[%clk 00:03:18]

} {

[%emt 00:00:23]

} Nxd3+ {

[%clk 00:08:04]

} {

[%emt 00:00:22]

} 28. Qxd3 {

[%clk 00:03:43]

} {

[%emt 00:00:06]

} Qe7 {

[%clk 00:05:36]

} {

[%emt 00:02:58]

} 29. Qd4 {

[%clk 00:03:26]

} {

[%emt 00:00:47]

} f6 {

[%clk 00:05:57]

} {

[%emt 00:00:08]

} 30. Qxf6 {

[%clk 00:03:25]

} {

[%emt 00:00:31]

} Qxf6 {

[%clk 00:04:53]

} {

[%emt 00:01:35]

} 31. Bxf6 {

[%clk 00:03:53]

} {

[%emt 00:00:02]

} Be6 {

[%clk 00:05:06]

} {

[%emt 00:00:16]

} 32. Rc1 {

[%clk 00:03:06]

} {

[%emt 00:01:17]

} Bg7 {

[%clk 00:05:10]

} {

[%emt 00:00:25]

} 33. Bxg7 {

[%clk 00:03:23]

} {

[%emt 00:00:14]

} Kxg7 {

[%clk 00:05:35]

} {

[%emt 00:00:05]

} 34. Kf2 {

[%clk 00:03:18]

} {

[%emt 00:00:34]

} g5 {

[%clk 00:03:42]

} {

[%emt 00:02:24]

} 35. fxg5 {

[%clk 00:03:13]

} {

[%emt 00:00:35]

} Kg6 {

[%clk 00:02:46]

} {

[%emt 00:01:27]

} 36. Nd4 {

[%clk 00:02:09]

} {

[%emt 00:01:34]

} Kxg5 {

[%clk 00:02:01]

} {

[%emt 00:01:14]

} 37. Nf3+ {

[%clk 00:02:29]

} {

[%emt 00:00:10]

} Kf4 {

[%clk 00:02:20]

} {

[%emt 00:00:12]

} 38. Nxh4 {

[%clk 00:02:43]

} {

[%emt 00:00:16]

} b5 {

[%clk 00:02:03]

} {

[%emt 00:00:46]

} 39. c5 {

[%clk 00:01:04]

} {

[%emt 00:02:10]

} Rad8 {

[%clk 00:01:17]

} {

[%emt 00:01:16]

} 40. cxd6 {

[%clk 00:15:34]

} {

[%emt 00:01:01]

} Rxd6 {

[%clk 00:15:50]

} {

[%emt 00:00:56]

} 41. Ng6+ {

[%clk 00:14:27]

} {

[%emt 00:01:36]

} Kg5 {

[%clk 00:16:00]

} {

[%emt 00:00:20]

} 42. Ne5 {

[%clk 00:14:49]

} {

[%emt 00:00:08]

} Kf6 {

[%clk 00:08:26]

} {

[%emt 00:08:05]

} 43. Nf3 {

[%clk 00:04:14]

} {

[%emt 00:11:05]

} Rd3 {

[%clk 00:08:14]

} {

[%emt 00:00:41]

} 44. Rxc6 {

[%clk 00:02:15]

} {

[%emt 00:02:30]

} Rxa3 {

[%clk 00:08:17]

} {

[%emt 00:00:26]

} 45. Rb6 {

[%clk 00:02:12]

} {

[%emt 00:00:35]

} Rb3 {

[%clk 00:03:45]

} {

[%emt 00:05:01]

} 46. Rxb5 {

[%clk 00:02:01]

} {

[%emt 00:00:42]

} a3 {

[%clk 00:04:00]

} {

[%emt 00:00:15]

} 47. Ra5 {

[%clk 00:01:25]

} {

[%emt 00:01:06]

} a2 {

[%clk 00:03:54]

} {

[%emt 00:00:35]

} 48. Nd4 {

[%clk 00:00:35]

} {

[%emt 00:01:21]

} Rb2+ {

[%clk 00:01:54]

} {

[%emt 00:02:29]

} 49. Kg3 {

[%clk 00:00:59]

} {

[%emt 00:00:06]

} Bc4 {

[%clk 00:02:05]

} {

[%emt 00:00:18]

} 50. g5+ {

[%clk 00:00:40]

} {

[%emt 00:00:50]

} Kf7 {

[%clk 00:02:19]

} {

[%emt 00:00:15]

} 51. Nf5 {

[%clk 00:00:37]

} {

[%emt 00:00:34]

} Rd8 {

[%clk 00:00:57]

} {

[%emt 00:01:51]

} 52. Bf3 {

[%clk 00:00:44]

} {

[%emt 00:00:23]

} Rb1 {

[%clk 00:01:02]

} {

[%emt 00:00:25]

} 53. Ra7+ {

[%clk 00:00:53]

} {

[%emt 00:00:21]

} Kg8 {

[%clk 00:00:33]

} {

[%emt 00:00:58]

} 54. Ne7+ {

[%clk 00:00:33]

} {

[%emt 00:00:51]

} Kf8 {

[%clk 00:00:41]

} {

[%emt 00:00:23]

} 55. Ng6+ {

[%clk 00:00:58]

} {

[%emt 00:00:04]

} Kg8 {

[%clk 00:01:07]

} {

[%emt 00:00:04]

} 56. Ne7+ {

[%clk 00:01:24]

} {

[%emt 00:00:04]

} Kf8 {

[%clk 00:00:53]

} {

[%emt 00:00:44]

} 57. Ng6+ {

[%clk 00:01:44]

} {

[%emt 00:00:10]

} Ke8 {

[%emt 00:00:38]

} 58. Ne5 {

[%emt 00:00:10]

} Kf8 {

[%emt 00:00:03]

} 1/2-1/2

[Event "Estonian Chess Championship 2022"]
[Site "Tallinn, Paul Keres Chess House, Estonia"]
[Date "2022.12.17"]
[Round "8.5"]
[White "Rychagov, Nikita"]
[Black "Sirosh, Ilja"]
[Result "1/2-1/2"]
[TimeControl "90 minutes for first 40 moves and 15 min. for the rest of the game with 30 sec. increment from move 1"]
[BlackTitle "IM"]
[WhiteFideId "4508394"]
[BlackFideId "4500458"]
[WhiteElo "2180"]
[BlackElo "2386"]

1. e4 {

[%clk 01:30:01]

} {

[%emt 00:00:52]

} c5 {

[%clk 01:30:57]

} {

[%emt 00:00:09]

} 2. Nf3 {

[%clk 01:29:55]

} {

[%emt 00:00:37]

} Nc6 {

[%clk 01:31:18]

} {

[%emt 00:00:09]

} 3. d4 {

[%clk 01:30:20]

} {

[%emt 00:00:05]

} cxd4 {

[%clk 01:31:42]

} {

[%emt 00:00:05]

} 4. Nxd4 {

[%clk 01:30:49]

} {

[%emt 00:00:02]

} Nf6 {

[%clk 01:32:04]

} {

[%emt 00:00:08]

} 5. Nc3 {

[%clk 01:31:11]

} {

[%emt 00:00:09]

} e5 {

[%clk 01:32:30]

} {

[%emt 00:00:04]

} 6. Ndb5 {

[%clk 01:31:34]

} {

[%emt 00:00:07]

} d6 {

[%clk 01:32:54]

} {

[%emt 00:00:06]

} 7. Bg5 {

[%clk 01:31:56]

} {

[%emt 00:00:08]

} a6 {

[%clk 01:33:17]

} {

[%emt 00:00:06]

} 8. Na3 {

[%clk 01:32:21]

} {

[%emt 00:00:06]

} b5 {

[%clk 01:33:43]

} {

[%emt 00:00:04]

} 9. Nd5 {

[%clk 01:32:42]

} {

[%emt 00:00:10]

} Be7 {

[%clk 01:34:08]

} {

[%emt 00:00:04]

} 10. Bxf6 {

[%clk 01:33:03]

} {

[%emt 00:00:09]

} Bxf6 {

[%clk 01:34:32]

} {

[%emt 00:00:05]

} 11. c3 {

[%clk 01:33:30]

} {

[%emt 00:00:04]

} Rb8 {

[%clk 01:34:53]

} {

[%emt 00:00:09]

} 12. Nc2 {

[%clk 01:33:30]

} {

[%emt 00:00:30]

} Bg5 {

[%clk 01:35:18]

} {

[%emt 00:00:05]

} 13. a4 {

[%clk 01:33:01]

} {

[%emt 00:01:00]

} bxa4 {

[%clk 01:35:30]

} {

[%emt 00:00:17]

} 14. Ncb4 {

[%clk 01:33:28]

} {

[%emt 00:00:03]

} Nxb4 {

[%clk 01:35:50]

} {

[%emt 00:00:10]

} 15. cxb4 {

[%clk 01:33:53]

} {

[%emt 00:00:05]

} O-O {

[%clk 01:35:16]

} {

[%emt 00:01:03]

} 16. Rxa4 {

[%clk 01:34:03]

} {

[%emt 00:00:21]

} a5 {

[%clk 01:35:35]

} {

[%emt 00:00:11]

} 17. h4 {

[%clk 01:34:01]

} {

[%emt 00:00:32]

} Bh6 {

[%clk 01:35:53]

} {

[%emt 00:00:12]

} 18. b5 {

[%clk 01:34:25]

} {

[%emt 00:00:07]

} Bd7 {

[%clk 01:36:17]

} {

[%emt 00:00:05]

} 19. Nc3 {

[%clk 01:34:51]

} {

[%emt 00:00:04]

} d5 {

[%clk 01:35:39]

} {

[%emt 00:01:08]

} 20. exd5 {

[%clk 01:35:16]

} {

[%emt 00:00:06]

} f5 {

[%clk 01:35:34]

} {

[%emt 00:00:35]

} 21. Be2 {

[%clk 01:35:27]

} {

[%emt 00:00:19]

} Kh8 {

[%clk 01:33:45]

} {

[%emt 00:02:18]

} 22. O-O {

[%clk 01:28:30]

} {

[%emt 00:07:28]

} g5 {

[%clk 01:31:03]

} {

[%emt 00:03:12]

} 23. hxg5 {

[%clk 01:27:56]

} {

[%emt 00:01:04]

} Qxg5 {

[%clk 01:31:09]

} {

[%emt 00:00:23]

} 24. d6 {

[%clk 01:21:43]

} {

[%emt 00:06:44]

} Rg8 {

[%clk 01:24:31]

} {

[%emt 00:07:07]

} 25. Qd5 {

[%clk 01:21:21]

} {

[%emt 00:00:52]

} e4 {

[%clk 01:24:41]

} {

[%emt 00:00:19]

} 26. g3 {

[%clk 01:15:23]

} {

[%emt 00:06:29]

} Rbe8 {

[%clk 01:01:14]

} {

[%emt 00:23:57]

} 27. Kg2 {

[%clk 01:09:23]

} {

[%emt 00:06:30]

} e3 {

[%clk 00:51:33]

} {

[%emt 00:10:11]

} 28. Qd4+ {

[%clk 01:08:18]

} {

[%emt 00:01:35]

} Bg7 {

[%clk 00:50:34]

} {

[%emt 00:01:29]

} 29. Qh4 {

[%clk 01:08:06]

} {

[%emt 00:00:42]

} Qxh4 {

[%clk 00:46:01]

} {

[%emt 00:05:03]

} 30. Rxh4 {

[%clk 01:08:29]

} {

[%emt 00:00:06]

} Bf6 {

[%clk 00:46:23]

} {

[%emt 00:00:09]

} 31. Rc4 {

[%clk 01:04:45]

} {

[%emt 00:04:14]

} exf2 {

[%clk 00:44:45]

} {

[%emt 00:02:07]

} 32. Rxf2 {

[%clk 01:04:08]

} {

[%emt 00:01:08]

} Be5 {

[%clk 00:43:32]

} {

[%emt 00:01:42]

} 33. g4 {

[%clk 01:03:29]

} {

[%emt 00:01:09]

} Bxd6 {

[%clk 00:28:40]

} {

[%emt 00:15:23]

} 34. Bf3 {

[%clk 01:03:27]

} {

[%emt 00:00:32]

} Bb4 {

[%clk 00:13:41]

} {

[%emt 00:15:29]

} 35. b6 {

[%clk 01:02:36]

} {

[%emt 00:01:22]

} fxg4 {

[%clk 00:05:19]

} {

[%emt 00:08:51]

} 36. Bd5 {

[%clk 01:02:57]

} {

[%emt 00:00:08]

} Be6 {

[%clk 00:05:37]

} {

[%emt 00:00:12]

} 37. Rc6 {

[%clk 01:02:57]

} {

[%emt 00:00:30]

} Bxd5+ {

[%clk 00:04:07]

} {

[%emt 00:02:01]

} 38. Nxd5 {

[%clk 01:03:13]

} {

[%emt 00:00:14]

} g3 {

[%clk 00:04:05]

} {

[%emt 00:00:31]

} 39. Rfc2 {

[%clk 01:03:07]

} {

[%emt 00:00:36]

} Rd8 {

[%clk 00:01:24]

} {

[%emt 00:03:10]

} 40. Nf6 {

[%clk 01:18:02]

} {

[%emt 00:00:35]

} Rgf8 {

[%clk 00:16:08]

} {

[%emt 00:00:46]

} 41. b7 {

[%clk 01:17:09]

} {

[%emt 00:01:23]

} Rb8 {

[%clk 00:08:13]

} {

[%emt 00:08:26]

} 42. Nd7 {

[%clk 01:17:28]

} {

[%emt 00:00:11]

} Rxb7 {

[%clk 00:08:35]

} {

[%emt 00:00:08]

} 43. Nxf8 {

[%clk 01:17:55]

} {

[%emt 00:00:03]

} Bxf8 {

[%clk 00:08:58]

} {

[%emt 00:00:07]

} 44. Kxg3 {

[%clk 01:17:38]

} {

[%emt 00:00:47]

} Kg7 {

[%clk 00:07:52]

} {

[%emt 00:01:35]

} 45. Ra6 {

[%clk 01:17:18]

} {

[%emt 00:00:51]

} Bb4 {

[%clk 00:08:02]

} {

[%emt 00:00:20]

} 46. Kf4 {

[%clk 01:16:42]

} {

[%emt 00:01:05]

} Rf7+ {

[%clk 00:07:25]

} {

[%emt 00:01:07]

} 47. Kg5 {

[%clk 01:16:42]

} {

[%emt 00:00:30]

} Rd7 {

[%clk 00:05:46]

} {

[%emt 00:02:09]

} 48. Kf5 {

[%clk 01:16:06]

} {

[%emt 00:01:06]

} Rf7+ {

[%clk 00:06:09]

} {

[%emt 00:00:07]

} 49. Ke5 {

[%clk 01:15:58]

} {

[%emt 00:00:39]

} Re7+ {

[%clk 00:06:34]

} {

[%emt 00:00:05]

} 50. Re6 {

[%clk 01:16:06]

} {

[%emt 00:00:21]

} Rxe6+ {

[%clk 00:02:26]

} {

[%emt 00:04:39]

} 51. Kxe6 {

[%clk 01:16:30]

} {

[%emt 00:00:06]

} h5 {

[%clk 00:02:23]

} {

[%emt 00:00:32]

} 52. Kf5 {

[%clk 01:16:43]

} {

[%emt 00:00:18]

} h4 {

[%clk 00:02:44]

} {

[%emt 00:00:09]

} 53. Kg4 {

[%clk 01:17:00]

} {

[%emt 00:00:13]

} Kf6 {

[%clk 00:02:54]

} {

[%emt 00:00:20]

} 54. Re2 {

[%clk 01:17:07]

} {

[%emt 00:00:23]

} Bd6 {

[%clk 00:03:23]

} 55. Kxh4 {

[%clk 01:16:55]

} {

[%emt 00:00:41]

} Be5 {

[%clk 00:03:18]

} {

[%emt 00:00:35]

} 56. b3 {

[%clk 01:16:59]

} {

[%emt 00:00:26]

} Ke6 {

[%clk 00:03:43]

} {

[%emt 00:00:05]

} 57. Re4 {

[%clk 01:17:19]

} {

[%emt 00:00:10]

} Kd5 {

[%clk 00:04:03]

} {

[%emt 00:00:10]

} 58. Rc4 {

[%clk 01:17:42]

} {

[%emt 00:00:08]

} Bd4 {

[%clk 00:03:25]

} {

[%emt 00:01:06]

} 59. Kg4 {

[%clk 01:17:54]

} {

[%emt 00:00:19]

} Bc5 {

[%clk 00:03:54]

} {

[%emt 00:00:02]

} 60. Kf5 {

[%clk 01:17:57]

} {

[%emt 00:00:27]

} Kc6 {

[%clk 00:04:22]

} {

[%emt 00:00:01]

} 61. Ke6 {

[%clk 01:18:16]

} {

[%emt 00:00:12]

} Kb5 {

[%clk 00:04:35]

} {

[%emt 00:00:17]

} 62. Kd5 {

[%clk 01:18:39]

} {

[%emt 00:00:07]

} Bb6 {

[%clk 00:03:22]

} {

[%emt 00:01:44]

} 63. Rg4 {

[%clk 01:18:26]

} {

[%emt 00:00:41]

} Bf2 {

[%clk 00:03:29]

} {

[%emt 00:00:22]

} 64. Rg8 {

[%clk 01:18:33]

} {

[%emt 00:00:23]

} Kb4 {

[%clk 00:03:28]

} {

[%emt 00:00:31]

} 65. Rb8+ {

[%clk 01:18:56]

} {

[%emt 00:00:08]

} Ka3 {

[%clk 00:01:34]

} {

[%emt 00:02:24]

} 66. Kc4 {

[%clk 01:19:19]

} {

[%emt 00:00:07]

} Be1 {

[%clk 00:01:59]

} {

[%emt 00:00:04]

} 67. Re8 {

[%clk 01:19:42]

} {

[%emt 00:00:07]

} Bb4 {

[%clk 00:02:05]

} {

[%emt 00:00:24]

} 68. Re3 {

[%clk 01:19:47]

} {

[%emt 00:00:25]

} Kb2 {

[%clk 00:02:19]

} {

[%emt 00:00:15]

} 69. Kb5 {

[%clk 01:19:58]

} {

[%emt 00:00:19]

} Ka3 {

[%clk 00:02:42]

} {

[%emt 00:00:07]

} 70. Rh3 {

[%clk 01:20:06]

} {

[%emt 00:00:22]

} Kb2 {

[%clk 00:02:33]

} {

[%emt 00:00:40]

} 71. Ka4 {

[%clk 01:20:31]

} {

[%emt 00:00:05]

} Kc2 {

[%clk 00:02:49]

} {

[%emt 00:00:13]

} 72. Rh4 {

[%clk 01:20:50]

} {

[%emt 00:00:11]

} Bc3 {

[%clk 00:02:33]

} {

[%emt 00:00:44]

} 73. Ka3 {

[%clk 01:21:13]

} {

[%emt 00:00:09]

} Bb2+ {

[%clk 00:02:20]

} {

[%emt 00:00:42]

} 74. Ka2 {

[%clk 01:21:41]

} {

[%emt 00:00:04]

} Bc3 {

[%clk 00:02:31]

} {

[%emt 00:00:19]

} 75. Rc4 {

[%clk 01:22:04]

} {

[%emt 00:00:07]

} Kd3 {

[%clk 00:02:45]

} {

[%emt 00:00:15]

} 76. Kb1 {

[%clk 01:22:14]

} {

[%emt 00:00:20]

} Bd4 {

[%clk 00:00:42]

} {

[%emt 00:02:33]

} 77. Rc8 {

[%clk 01:22:10]

} {

[%emt 00:00:34]

} Bf6 {

[%clk 00:00:40]

} {

[%emt 00:00:32]

} 78. Rf8 {

[%clk 01:22:14]

} {

[%emt 00:00:27]

} Bc3 {

[%clk 00:00:37]

} {

[%emt 00:00:33]

} 79. Rf3+ {

[%clk 01:22:37]

} {

[%emt 00:00:06]

} Kd2 {

[%clk 00:00:37]

} {

[%emt 00:00:30]

} 80. Rh3 {

[%clk 01:22:29]

} {

[%emt 00:00:39]

} Bb4 {

[%clk 00:00:39]

} {

[%emt 00:00:28]

} 81. Kb2 {

[%clk 01:22:43]

} {

[%emt 00:00:16]

} Bf8 {

[%clk 00:00:40]

} {

[%emt 00:00:28]

} 82. Rh7 {

[%clk 01:23:03]

} {

[%emt 00:00:11]

} Bb4 {

[%clk 00:00:52]

} {

[%emt 00:00:18]

} 83. Rd7 {

[%clk 01:23:29]

} {

[%emt 00:00:04]

} Ke2 {

[%clk 00:01:09]

} {

[%emt 00:00:13]

} 84. Kc2 {

[%clk 01:23:54]

} {

[%emt 00:00:05]

} Ke3 {

[%clk 00:01:36]

} {

[%emt 00:00:03]

} 85. Rd5 {

[%clk 01:22:32]

} {

[%emt 00:01:52]

} Ke4 {

[%clk 00:00:54]

} {

[%emt 00:01:12]

} 86. Rd3 {

[%clk 01:22:32]

} {

[%emt 00:00:29]

} Be1 {

[%clk 00:01:06]

} {

[%emt 00:00:17]

} 87. Rh3 {

[%clk 01:22:12]

} {

[%emt 00:00:51]

} Bb4 {

[%clk 00:01:29]

} {

[%emt 00:00:07]

} 88. Kd1 {

[%clk 01:21:37]

} {

[%emt 00:01:06]

} Kd4 {

[%clk 00:01:36]

} {

[%emt 00:00:22]

} 89. Ke2 {

[%clk 01:22:01]

} {

[%emt 00:00:06]

} Be7 {

[%clk 00:00:39]

} {

[%emt 00:01:27]

} 90. Rd3+ {

[%clk 01:22:05]

} {

[%emt 00:00:26]

} Kc5 {

[%clk 00:01:08]

} {

[%emt 00:00:02]

} 91. Re3 {

[%clk 01:22:23]

} {

[%emt 00:00:12]

} Bf6 {

[%clk 00:00:59]

} {

[%emt 00:00:38]

} 92. Re4 {

[%clk 01:22:49]

} {

[%emt 00:00:05]

} Kb5 {

[%clk 00:00:37]

} {

[%emt 00:00:52]

} 93. Kd3 {

[%clk 01:22:55]

} {

[%emt 00:00:24]

} Bb2 {

[%clk 00:00:46]

} {

[%emt 00:00:20]

} 94. Re8 {

[%clk 01:22:51]

} {

[%emt 00:00:35]

} Kb4 {

[%clk 00:00:33]

} {

[%emt 00:00:43]

} 95. Rb8+ {

[%clk 01:23:13]

} {

[%emt 00:00:08]

} Kc5 {

[%clk 00:00:33]

} {

[%emt 00:00:30]

} 96. Kc2 {

[%clk 01:23:17]

} {

[%emt 00:00:26]

} Be5 {

[%clk 00:00:42]

} {

[%emt 00:00:20]

} 97. Rc8+ {

[%clk 01:23:19]

} {

[%emt 00:00:29]

} Kb4 {

[%clk 00:00:55]

} {

[%emt 00:00:14]

} 98. Rc4+ {

[%clk 01:23:40]

} {

[%emt 00:00:11]

} Kb5 {

[%clk 00:01:20]

} {

[%emt 00:00:05]

} 99. Kb1 {

[%clk 01:24:07]

} {

[%emt 00:00:03]

} Bd6 {

[%clk 00:01:39]

} {

[%emt 00:00:11]

} 100. Ka2 {

[%clk 01:24:32]

} {

[%emt 00:00:05]

} Bb4 {

[%clk 00:02:01]

} {

[%emt 00:00:08]

} 101. Rc8 {

[%clk 01:24:51]

} {

[%emt 00:00:11]

} Kb6 {

[%clk 00:02:23]

} {

[%emt 00:00:08]

} 102. Rb8+ {

[%clk 01:24:53]

} {

[%emt 00:00:29]

} Kc7 {

[%clk 00:02:31]

} {

[%emt 00:00:20]

} 103. Rb5 {

[%clk 01:25:19]

} {

[%emt 00:00:06]

} Kc6 {

[%clk 00:02:58]

} {

[%emt 00:00:03]

} 104. Rh5 {

[%clk 01:25:42]

} {

[%emt 00:00:07]

} Kb6 {

[%clk 00:03:19]

} {

[%emt 00:00:08]

} 1/2-1/2

[ePGN "0.1;DGT LiveChess/2.2.5"]